Cogmind - Beta 14 @@@ ROGUE MODE // 2024.08.13 @ 22:14:42 Player: Cereal Killer Result: Destroyed by C-17 Slicer with Concussive RPG Performance ------------- Evolutions (4) 2000 Regions Visited (5) 1000 Robots Destroyed (50) 250 Value Destroyed (1808) 1808 Prototype IDs (21) 420 Alien Tech Used (0) 0 Bonus (498) 498 TOTAL SCORE: 5976 Bonus ------- High Alert Combat Kills 198 Registered with UFD 300 Cogmind --------- Core Integrity 0/850 Matter 159/300 Energy 100/100 System Corruption 12% Temperature Cool (0) Movement Hovering (80) Location -6/Factory Parts ------- > --- POWER (1) -------- (None) > --- PROPULSION (2) --- Combat Airjet > --- UTILITY (8) ------ Advanced Signal Interpreter Experimental Targeting Computer > --- WEAPON (4) ------- Chainsword > --- INVENTORY (5) ---- Advanced Signal Interpreter Remote Shield CPS Tube (2) Junk Cannon (0) Peak State ------------ > --- POWER ------------ Angular Momentum Engine > --- PROPULSION ------- Armored Huge Wheel > --- UTILITY ---------- Scrap Suit Advanced Heat Sink Advanced Heat Sink Large Storage Unit Machine Analyzer Experimental Sensor Array Experimental Targeting Computer > --- WEAPON ----------- Plasma Rifle Plasma Rifle Antimatter Cannon Power Maul > --- INVENTORY -------- Light Angular Momentum Engine Wheel Armored Wheel Advanced Heat Sink Experimental Targeting Computer Armor Integrity Analyzer Transmission Jammer Improved Light Armor Plating Long-range Missile Launcher CPS Tube CPS Tube Junk Cannon Vortex Trap [Rating: 75] Favorites ----------- Power Improved Ion Engine Engine Improved Ion Engine Propulsion Wheel Treads Light Treads Wheel Wheel Hover Unit Combat Airjet Utility Advanced Heat Sink Device Advanced Heat Sink Storage Small Storage Unit Processor Makeshift Targeting Computer Protection Improved Light Armor Plating Weapon Subdweller Machine Gun Energy Gun Plasma Rifle Ballistic Gun Subdweller Machine Gun Ballistic Cannon Magnetic Acceleration Cannon Launcher Grenade Launcher Special Weapon CPS Tube Impact Weapon Power Maul Slashing Weapon Chainsword Build | -11 -10 -10 -9 -9 -6 ------- Run | Yrd Mat Sub Rec Scr Fac Slots Evolved 8 | . . . . . 8 Power . | . . . . . . Propulsion . | . . . . . . Utility 6 | . . . . . 6 Weapon 2 | . . . . . 2 Parts Attached 61 | 7 2 7 5 1 39 Power 8 | 1 . . 2 . 5 Engine 8 | 1 . . 2 . 5 Core . | . . . . . . Reactor . | . . . . . . Propulsion 15 | 2 . 2 3 . 8 Treads 2 | . . 2 . . . Leg . | . . . . . . Wheel 12 | 2 . . 3 . 7 Hover 1 | . . . . . 1 Flight . | . . . . . . Utility 22 | 2 1 1 . 1 17 Device 12 | 1 1 . . . 10 Storage 2 | 1 . . . 1 . Processor 6 | . . 1 . . 5 Hackware . | . . . . . . Protection 2 | . . . . . 2 Artifact . | . . . . . . Weapon 16 | 2 1 4 . . 9 Energy Gun . | . . . . . . Energy Cannon . | . . . . . . Ballistic Gun 6 | 2 . 4 . . . Ballistic Cannon 2 | . . . . . 2 Launcher 3 | . 1 . . . 2 Special Weapon 3 | . . . . . 3 Impact Weapon 1 | . . . . . 1 Slashing Weapon 1 | . . . . . 1 Piercing Weapon . | . . . . . . Special Melee Weapon . | . . . . . . Unidentified Prototypes 3 | . . . . . 3 Parts Lost 32 | . . 3 1 . 28 Power 5 | . . . 1 . 4 Propulsion 4 | . . 1 . . 3 Utility 10 | . . . . . 10 Weapon 13 | . . 2 . . 11 Highest Loss Streak 19 | . . 2 1 . 19 To Critical Strikes . | . . . . . . Average Slot Usage (%) 92 | . 100 98 99 100 83 Engine 10 | . 14 14 13 14 5 Treads 4 | . . 18 . . . Wheel 16 | . 28 9 27 28 10 Device 13 | . 14 8 . . 25 Storage 10 | . 14 14 14 14 5 Processor 9 | . . 5 14 14 8 Energy Gun 4 | . . . . . 10 Ballistic Gun 16 | . 20 22 28 28 4 Ballistic Cannon 2 | . . . . . 4 Launcher 1 | . 8 4 . . . Peak Build Rating 75 | 7 9 12 13 16 75 Average Rating 32 | 4 7 10 12 13 60 On Entrance 9 | . 7 9 11 13 16 Naked Turns . | . . . . . . Heaviest Build 64 | 11 13 16 20 35 64 Greatest Support 40 | 20 20 40 30 22 28 Greatest Overweight (x) 5 | 1 . 1 1 1 5 Average Overweight (x) . | . . . . . 1 Largest Inventory Capacity 15 | 8 8 8 8 15 15 Average Capacity 11 | 7 8 8 8 10 14 Most Carried 15 | 8 8 8 8 15 15 Average Carried 10 | 5 8 7 7 9 13 Final Capacity 15 | 8 8 8 8 15 5 Final Carried 15 | 8 8 8 8 15 5 Class Distribution -------------------- 66% | Mutant 33% | Skirmisher Dominant Class ---------------- Mutant | -10/Materials Mutant | -10/Subcaves Mutant | -9/Recycling Mutant | -9/Scraptown Skirmisher | -6/Factory Resources | -11 -10 -10 -9 -9 -6 ----------- Run | Yrd Mat Sub Rec Scr Fac Matter Collected 1210 | 278 29 246 47 10 600 Remotely . | . . . . . . Salvage Created 1620 | 116 23 184 102 . 1195 Parts 98 | 10 6 16 11 . 55 Haulers Intercepted 1 | . . . . . 1 Recyclers Shooed 1 | . . . . . 1 Parts Field Recycled . | . . . . . . Retrieved Matter . | . . . . . . Parts Self-Destructed 10 | . . 10 . . . Prevented . | . . . . . . Kills | -11 -10 -10 -9 -9 -6 ------- Run | Yrd Mat Sub Rec Scr Fac Combat Hostiles Destroyed 38 | . . 10 2 . 26 Guns 16 | . . 6 2 . 8 Cannons 11 | . . . . . 11 AOE 10 | . . 4 . . 6 Classes Destroyed 14 | 2 1 4 1 . 6 Worker 3 | . . . . . 3 Builder 1 | . 1 . . . . Tunneler 3 | 2 1 . . . . Hauler 1 | . . . . . 1 Recycler 1 | 1 . . . . . Turret 2 | . . 2 . . . Watcher 1 | . . . . . 1 Swarmer 11 | . . 7 . . 4 Grunt 16 | . . 2 . . 14 Brawler 2 | . . . . . 2 Duelist 1 | . . . . . 1 Sentry 4 | . . . 2 . 2 Programmer 3 | . . . . . 3 Subdweller 1 | . . 1 . . . Best Kill Streak 5 | 2 2 5 1 . 5 Combat Bots Only 5 | . . 5 1 . 5 Max Kills in Single Turn 2 | 1 1 2 1 . 2 Gunslinging 1 | . . 1 . . . Exploded 2 | . . 2 . . 2 Melee . | . . . . . . Uniques/NPCs Destroyed . | . . . . . . Combat | -11 -10 -10 -9 -9 -6 -------- Run | Yrd Mat Sub Rec Scr Fac Hostile Shots Fired 420 | . . 113 6 . 301 Missed 145 | . . 39 1 . 105 Damage Taken 4524 | . 13 699 74 . 3738 Core 1027 | . . 148 29 . 850 Absorbed by Shields 42 | . . . . . 42 Regen/Repaired (Parts) 38 | . . . . . 38 Core Remaining (%) 64 | 100 . . . 29 . Volleys Fired 119 | 9 4 31 3 . 72 Largest 4 | 2 1 2 2 . 4 Hottest 233 | 40 30 60 60 . 233 Shots Fired 269 | 18 4 53 6 . 188 Gun 202 | 18 . 49 6 . 129 Cannon 52 | . . . . . 52 Launcher 12 | . 4 4 . . 4 Special 3 | . . . . . 3 Kinetic 157 | 18 . 49 6 . 84 Thermal 98 | . . . . . 98 Explosive 11 | . 4 4 . . 3 Electromagnetic . | . . . . . . Robot Hit Streak 11 | 7 . 9 3 . 11 Robot Miss Streak 4 | 3 . 3 2 . 4 Penetration Max . | . . . . . . Secondary Targets 3 | . . 3 . . . Max Gunslinging Chain 1 | . . 1 . . . Shots Hit Robots 146 | 10 . 33 3 . 100 Core Hits 91 | 6 3 19 2 . 61 Critical Kills 2 | 1 . . . . 1 Critical Parts Destroyed . | . . . . . . Critical Strikes 13 | 1 . . . . 12 Burn 9 | . . . . . 9 Destroy 1 | 1 . . . . . Blast 2 | . . . . . 2 Smash 1 | . . . . . 1 Melee Attacks 15 | . . . . . 15 Impact 13 | . . . . . 13 Slashing 2 | . . . . . 2 Piercing . | . . . . . . Sneak Attacks 1 | . . . . . 1 Combat Hostiles . | . . . . . . Follow-up Attacks . | . . . . . . Damage Inflicted 4716 | 77 62 934 68 . 3575 Guns 2332 | 77 . 649 68 . 1538 Cannons 1054 | . . . . . 1054 Explosions 1249 | . 62 285 . . 902 Melee 81 | . . . . . 81 Ramming . | . . . . . . Kinetic 2317 | 77 . 649 68 . 1523 Thermal 1201 | . . . . . 1201 Explosive 1117 | . 62 285 . . 770 Electromagnetic . | . . . . . . Impact 81 | . . . . . 81 Slashing . | . . . . . . Piercing . | . . . . . . Highest Corruption 12 | . . . . . 12 Average Corruption 6 | . . . . . 6 Corruption Purged 5 | . . . . . 5 Corruption Blocked . | . . . . . . Effects 21 | . . . . . 21 Message Errors 4 | . . . . . 4 Matter Fused 2 | . . . . . 2 Heat Flow Errors 1 | . . . . . 1 Data Loss (minor) 6 | . . . . . 6 Alerts 1 | . . . . . 1 Misdirections 6 | . . . . . 6 Weapon Failures 1 | . . . . . 1 Overload Shots . | . . . . . . Overflow Damage 85 | . . 17 . . 68 Projectiles 19 | . . . . . 19 Explosions 66 | . . 17 . . 49 Melee . | . . . . . . Knockbacks 10 | . . . . . 10 Impact . | . . . . . . Kinetic 9 | . . . . . 9 Secondary 1 | . . . . . 1 Self-Inflicted Damage 420 | . 13 . . . 407 Shots 7 | . 2 . . . 5 Rammed . | . . . . . . Targets Rammed . | . . . . . . Kicked . | . . . . . . Crushed . | . . . . . . Highest Temperature 241 | . . 10 22 . 241 Average Temperature 91 | . . 7 13 . 97 Received Heat Transfer 1263 | . . 288 45 . 930 Siege Activations . | . . . . . . Robots Corrupted . | . . . . . . Combat Hostiles . | . . . . . . Parts Fried 2 | . . . . . 2 Impact Corruptions . | . . . . . . Robots Melted . | . . . . . . Combat Hostiles . | . . . . . . Parts Melted 4 | . . . . . 4 Heat Transferred 3550 | . . . . . 3550 Parts Sabotaged . | . . . . . . Parts Stolen . | . . . . . . Parts Stripped . | . . . . . . Power Chain Reactions . | . . . . . . Alert | -11 -10 -10 -9 -9 -6 ------- Run | Yrd Mat Sub Rec Scr Fac Peak Influence 760 | 15 28 . 58 . 760 Initial 12 | . 9 . 12 . . Average 183 | 5 16 . 40 . 230 Maximum Alert Level 3 | . . . . . 3 Low Security (%) 73 | 100 100 . 100 . 65 Level 1 6 | . . . . . 8 Level 2 14 | . . . . . 18 Level 3 6 | . . . . . 8 Level 4 . | . . . . . . Level 5 . | . . . . . . High Security . | . . . . . . Max Security . | . . . . . . Squads Dispatched 16 | . . . . . 16 Investigation 8 | . . . . . 8 Extermination 4 | . . . . . 4 Reinforcement 4 | . . . . . 4 Assault . | . . . . . . Garrison . | . . . . . . Intercept . | . . . . . . Searches Triggered . | . . . . . . Construction Impeded 1 | . . . . . 1 Haulers Reinforced . | . . . . . . Active Scanning Responses . | . . . . . . Cargo Convoy Interrupts . | . . . . . . Stealth | -11 -10 -10 -9 -9 -6 --------- Run | Yrd Mat Sub Rec Scr Fac Distress Signals 1 | . . . . . 1 Communications Jammed . | . . . . . . Distress Signals . | . . . . . . Times Spotted 67 | . . 20 2 . 45 Peak Tracking Total 7 | . . 6 1 . 7 Tactical Retreats 7 | . . 4 . . 3 Traps | -11 -10 -10 -9 -9 -6 ------- Run | Yrd Mat Sub Rec Scr Fac Traps Triggered 5 | . . 1 . . 4 Indirectly . | . . . . . . Trap Hack Attempts . | . . . . . . Triggered . | . . . . . . Disarmed . | . . . . . . Reprogrammed . | . . . . . . Reused 1 | . . . . . 1 Traps Extracted . | . . . . . . Installed 1 | . . . . . 1 Triggered 1 | . . . . . 1 Most Traps Carried 1 | . . . . 1 1 Machines | -11 -10 -10 -9 -9 -6 ---------- Run | Yrd Mat Sub Rec Scr Fac Machines Disabled 17 | . . 2 . . 15 Max in Single Turn 4 | . . 2 . . 4 Garrison Access 2 | . . . . . 2 Machines Repaired . | . . . . . . Machines Dismantled . | . . . . . . Machines Sabotaged . | . . . . . . Overloaded Fab Kills 4 | . . . . . 4 Hacking | -11 -10 -10 -9 -9 -6 --------- Run | Yrd Mat Sub Rec Scr Fac Machines Accessed 26 | . 1 . 6 1 18 Terminals 12 | . 1 . 6 . 5 Fabricators 4 | . . . . . 4 Repair Stations . | . . . . . . Recycling Units 5 | . . . . . 5 Scanalyzers 2 | . . . . . 2 Garrison Access 2 | . . . . . 2 Total Hacks 66 | . 2 . 14 1 49 Successful 30 | . 1 . 5 1 23 Failed 36 | . 1 . 9 . 26 Catastrophic 7 | . 1 . . . 6 Database Lockouts . | . . . . . . Manual 28 | . 1 . 2 . 25 Terminals 34 | . 2 . 14 . 18 Fabricators 9 | . . . . . 9 Repair Stations . | . . . . . . Recycling Units 7 | . . . . . 7 Scanalyzers 11 | . . . . . 11 Garrison Access 4 | . . . . . 4 Terminal Hacks 12 | . . . 5 1 6 Record 1 | . . . 1 . . Robot Schematic 1 | . . . 1 . . Robot Analysis 3 | . . . . . 3 Prototype ID Bank 2 | . . . 2 . . Emergency Access Points 1 | . . . . . 1 Alert Level 2 | . . . 1 . 1 Locate Traps 1 | . . . . . 1 Derelict Proto ID Bank 1 | . . . . 1 . Fabricator Hacks 2 | . . . . . 2 Network Status 1 | . . . . . 1 Build 1 | . . . . . 1 Repair Station Hacks . | . . . . . . Recycling Unit Hacks . | . . . . . . Scanalyzer 5 | . . . . . 5 Insert Component 3 | . . . . . 3 Analyze 2 | . . . . . 2 Garrison Access Hacks 1 | . . . . . 1 Seal Access 1 | . . . . . 1 Unauthorized Hacks 10 | . 1 . . . 9 Terminals 2 | . 1 . . . 1 Botnet 2 | . 1 . . . 1 Fabricators 2 | . . . . . 2 Haulers 1 | . . . . . 1 Overload 1 | . . . . . 1 Repair Stations 5 | . . . . . 5 Recycling Units . | . . . . . . Fedlink 5 | . . . . . 5 Scanalyzers . | . . . . . . Garrison Access 1 | . . . . . 1 Jam 1 | . . . . . 1 Data Cores Recovered 1 | . . . . . 1 Used . | . . . . . . Hacking Detections 17 | . 1 . 5 . 11 Full Trace Events 2 | . . . 1 . 1 Feedback Events . | . . . . . . Feedback Blocked . | . . . . . . Robot Schematics Acquired 1 | . . . 1 . . Robots Built . | . . . . . . Authchips . | . . . . . . Time . | . . . . . . Total Robot Build Rating . | . . . . . . Part Schematics Acquired 2 | . . . . . 2 Parts Built 2 | . . . . . 2 Authchips . | . . . . . . Time 95 | . . . . . 95 Total Part Build Rating 10 | . . . . . 10 Parts Repaired . | . . . . . . Time . | . . . . . . Parts Recycled . | . . . . . . Recycled Matter . | . . . . . . Retrieved Matter . | . . . . . . Retrieved Components . | . . . . . . Parts Scanalyzed 2 | . . . . . 2 Part Schematics Acquired 2 | . . . . . 2 Parts Damaged . | . . . . . . Bothacking | -11 -10 -10 -9 -9 -6 ------------ Run | Yrd Mat Sub Rec Scr Fac Used RIF Installer . | . . . . . . Robots Hacked . | . . . . . . Non-combat . | . . . . . . Combat . | . . . . . . Robot Hacks Applied . | . . . . . . Relay Couplers Released . | . . . . . . Fabnet Peak Effective % . | . . . . . . Robots Rewired . | . . . . . . Allies Hacked . | . . . . . . Hacks Repelled . | . . . . . . Allies | -11 -10 -10 -9 -9 -6 -------- Run | Yrd Mat Sub Rec Scr Fac Total Allies . | . . . . . . Largest Group . | . . . . . . Highest-Rated Group . | . . . . . . Highest-Rated Ally . | . . . . . . Total Orders . | . . . . . . Ally Attacks . | . . . . . . Total Damage . | . . . . . . Kills . | . . . . . . Allies Corrupted . | . . . . . . Allies Melted . | . . . . . . Intel | -11 -10 -10 -9 -9 -6 ------- Run | Yrd Mat Sub Rec Scr Fac Robot Analysis Total 3 | . . . . . 3 Derelict Logs Recovered 5 | . . 1 . 4 . Drone Launches . | . . . . . . Drone Recoveries . | . . . . . . Exploration | -11 -10 -10 -9 -9 -6 ------------- Run | Yrd Mat Sub Rec Scr Fac Turns Passed 4710 | 109 70 1049 434 1066 1982 Spaces Moved 3943 | 80 72 810 445 1175 1361 Core 28 | 7 . . . . 21 Treads 372 | . . 372 . . . Legs . | . . . . . . Wheels 3502 | 73 72 438 445 1175 1299 Hover 41 | . . . . . 41 Flight . | . . . . . . Fastest Speed 50 | 50 80 80 85 85 50 Average Speed 103 | 77 80 116 92 89 113 Slowest Speed 160 | 95 80 160 95 100 155 Overloaded Moves . | . . . . . . Propulsion Burnouts . | . . . . . . Robots Hopped . | . . . . . . Cave-ins Triggered 1 | . . . . . 1 Exploration Rate (%) 48 | 4 10 53 97 86 41 Regions Visited 5 Branch Regions 3 Pre-discovered Areas 2 | . . 1 . 1 . Known Exits Taken . | . . . . . . Unknown Exits Taken 5 | 1 1 1 1 1 . Scrap Searched 1 | . . . . 1 . Spaces Dug 20 | . . . . . 20 Terrain Destroyed 104 | . 4 11 2 . 87 Melee 14 | . . . . . 14 Projectile 15 | . . . 2 . 13 AOE 75 | . 4 11 . . 60 Terrain Rammed . | . . . . . . Walls Destroyed . | . . . . . . Machines Disabled . | . . . . . . Actions | -11 -10 -10 -9 -9 -6 --------- Run | Yrd Mat Sub Rec Scr Fac Total 4332 | 111 80 864 460 1184 1633 Wait 96 | 3 . 2 1 . 90 Move 3938 | 79 71 809 444 1174 1361 Hop . | . . . . . . Pick Up 62 | 13 1 7 4 8 29 Fast Attach 15 | 2 1 1 . . 11 Attach 33 | 5 . 3 1 . 24 Detach 2 | . . . . . 2 Swap 13 | . 1 3 4 1 4 Drop 38 | . 2 8 3 1 24 Fire 119 | 9 4 31 3 . 72 Melee 15 | . . . . . 15 Ram . | . . . . . . Kick . | . . . . . . Crush . | . . . . . . Escape Stasis . | . . . . . . Rewire . | . . . . . . Trap 1 | . . . . . 1 Miscellaneous . | . . . . . . Route ------- -11/Scrapyard -10/Materials -10/Subcaves (discovered 2 exits: [*Mat] / *Rec) -9/Recycling (discovered 2 exits: [*Fac] / *Scr) -9/Scraptown (discovered 2 exits: *Fac x2) -6/Factory (discovered 1 exit: [*Low]) History --------- Turn | Location | Event 27 | -11/Scrapyard | Discovered new exit (range 16) 110 | -11/Scrapyard | Entered Materials 174 | -10/Materials | Discovered new exit (range 8) 180 | -10/Materials | Entered Subcaves 313 | -10/Subcaves | Build established: Mutant 516 | -10/Subcaves | A swath of the cavern ceiling suddenly collapsed 534 | -10/Subcaves | Discovered new exit (range 14) 904 | -10/Subcaves | Discovered new exit (range 11) 920 | -10/Subcaves | Core integrity fell below 50% 1014 | -10/Subcaves | Shifting Twisted Machinery released Sub. Machine Gun 1229 | -10/Subcaves | Entered Recycling 1476 | -9/Recycling | Discovered new exit (range 5) 1639 | -9/Recycling | Scanned before Scraplab entrance 1651 | -9/Recycling | Entered Scraplab 1661 | -9/Recycling | Discovered new exit (range 3) 1663 | -9/Recycling | Entered Scraptown 1756 | -9/Scraptown | Visited UFD Registry 1756 | -9/Scraptown | Registered with UFD as "Novacutter" 1769 | -9/Scraptown | Visited Shadow of the Wyrm 1777 | -9/Scraptown | Visited TADAMA 1812 | -9/Scraptown | Heard Great Nut preacher, LISTEN AND RECITE! 1936 | -9/Scraptown | Discovered new exit (range 11) 1982 | -9/Scraptown | Scanned Subdweller tech in exchange for log data 1984 | -9/Scraptown | Learned location of Extension (-5) 1985 | -9/Scraptown | Learned Factory emergency access door positions 1986 | -9/Scraptown | Learned location of 2 exits from Research 1987 | -9/Scraptown | Learned Factory stockpile data 2013 | -9/Scraptown | Guru changed UFD alias to "Shadowripper" 2052 | -9/Scraptown | Visited Symbiants 2074 | -9/Scraptown | Visited Spacefarers 2121 | -9/Scraptown | Visited Assassins FH 2159 | -9/Scraptown | Visited SPCMW 2196 | -9/Scraptown | Visited Scrapoid Research Area 2212 | -9/Scraptown | Visited LU-1G1's Boring Crew 2243 | -9/Scraptown | Visited Curators Association 2452 | -9/Scraptown | Visited Research Penetration Think Tank 2474 | -9/Scraptown | Visited Scrap Suit Storage 2480 | -9/Scraptown | Found Scrap Suit 2521 | -9/Scraptown | Visited Infowarlord's Domain 2545 | -9/Scraptown | Visited Science Guys 2594 | -9/Scraptown | Found Exp. Sensor Array 2626 | -9/Scraptown | Visited Junk Cannon Lab 2644 | -9/Scraptown | Found Prototype Special Weapon 2726 | -9/Scraptown | Discovered new exit (range 3) 2729 | -9/Scraptown | Entered Factory 2729 | -6/Factory | Evolved 8 slots: Utility x6, Weapon x2 2969 | -6/Factory | Lost 4 parts (1u3w) 2973 | -6/Factory | Fabricated Plasma Rifle (x2) 3051 | -6/Factory | Discovered new exit (range 10) 3222 | -6/Factory | Build established: Skirmisher 3967 | -6/Factory | Found Prototype Processor 3968 | -6/Factory | Identified Exp. Targeting Computer 3971 | -6/Factory | Found Exp. Targeting Computer 4487 | -6/Factory | Core integrity fell below 50% 4498 | -6/Factory | Spotted B-75 Beast 4555 | -6/Factory | Crushed by falling debris 4555 | -6/Factory | System corruption reached 10% 4633 | -6/Factory | Core integrity fell below 20% 4669 | -6/Factory | Identified Junk Cannon 4689 | -6/Factory | Lost 19 parts (2p3n8u6w) 4711 | -6/Factory | Destroyed by C-17 Slicer with Concussive RPG Last Messages --------------- Wheel destroyed. System corrupted: Component data lost. Adv. Heat Sink destroyed. Dropped Lrg. Storage Unit. Acquired Adv. Signal Interpreter. Critical hit (Burn: +37). Arm. Wheel destroyed. Dropped Adv. Heat Sink. Power Maul destroyed. ALERT: Suspicious intruders detected, dispatching Cutter reinforcements to area. 8TBCB CP>L%Y7XN>B, R SO5 Armor Integrity Analyzer destroyed. Map ----- +----------------------------------------------------+ | | | | | | | | | | | | | | | [ ######??????????????????????????????? | | =%! % #??????????????????????????????? | | #= "" #??????????????????????????????? | | % ######?????????????????????????? | | # % "" # ?????????????????????????? | | "" ! # #?????????????????????????? | | # #?????????????????????????? | | = ! # #?????????????????????????? | | # "" # #?????????????????????????? | | # """" Y" # ##############????????????? | | """" *!""" #!%= # #????????????? | | # # ! # #????????????? | | #######+#####;# ; = #????????????? | | t % !#????????????? | | / #????????????? | | #????????????? | | #????????????? | | #????????????? | | @ #????????????? | | #????????????? | | ###?#####" #### ! #????????????? | | #???????#"T???# #????????????? | | #???????##????# ;;;;;#########????????????? | | #???????? c### ##????????????????????? | | #??????? c#?# #?????????????????????? | | #???????? #?# #?????????????????????? | | #???????? c ###+##########????????????? | | #???????? # #????????????? | | #?????????##### # #????????????? | | #?????????????# # ! #????????????? | | #?????????????# # #????????????? | | #?????????????# # ! #????????????? | | #?????????????# ?# #????????????? | | #?????????????# ?# #????????????? | | #????????????????? ??# ! #????????????? | | #???????????????^^?^^?+ ! ############## | | #????????????????^?^??# ! ## | | #?????????????????????#! ## | | #?????????????????????# ! ## | | #?????????????????????#######/#"##### | | ##??????????????????????????# " | | ##########+##???????????????# # | | ???????????????# # | +----------------------------------------------------+ Best States ------------- Heat Dissipation 94 Energy Generation 18 Energy Capacity 300 Matter Stores 300 Matter Capacity 300 Sight Range 16 Robot Scan Range 20 Terrain Scan Range 16 Terrain Scan Density 10 Jamming Range 12 Armor Coverage 150 Evasion (%) 50 Targeting Accuracy 12 Armor Integrity Analysis 30 Recoil Reduction 2 Item Schematics ----------------- CPS Tube | -6/Factory | Scanalyzed Matter Compressor | -6/Factory | Scanalyzed Robot Schematics ------------------ S-10 Pest | -9/Recycling | Hacked Fabricated ------------ Plasma Rifle | x2 | -6/Factory | Preloaded Alien Tech Used ----------------- None Achievements -------------- Ride The Lightning Challenges ------------ None Game ------ Seed BladeSensorLink Manual? 0 Play Time 01:02:16 Cumulative 146.7 hours Start 2024.08.13 @ 21:07:40 End 2024.08.13 @ 22:14:42 Sessions 1 Manual Loads 0 Difficulty Rogue Special Mode None Game No. 142 Rogue 133 Adventurer 9 Explorer 0 Win Type - Total 0 Types 0/0/0/0/0/0/0/0/0 Lore% 59 Gallery% 62 Achievement% 49 Wizard Run 0 Options --------- Layout 1 ASCII 0 Keyboard 0 Movement Numpad Keybinds 0 Fullscreen 1 Font 24/Smallcaps Map View 50x35 Zoom Use 0% Tactical HUD 0 Map Filters NONE Filters NONE Steam 1 RUN: 693f5a05-c097-4569-bfe1-2e0d999cd575